bitfinex-derivatives/quotes_SOLF0:USTF0_20240824
["timestamp","ask_amount","ask_price","bid_price","bid_amount"]
[1724471477995,2.6876,153.25,153.17,19.86]
[1724471478195,3.23360736,153.29,153.2,19.86]
[1724471478503,19.54,153.3,153.2,19.86]
[1724471478900,0.04444025,153.27,153.23,0.04424254]
[1724471479403,3.2607,153.24,153.23,0.04424254]
[1724471485400,0.04444025,153.27,153.23,19.90424254]
[1724471486106,3.2605,153.24,153.23,19.90424254]
[1724471486500,0.04444025,153.27,153.23,19.90424254]
[1724471487300,3.2604,153.25,153.23,19.90424254]
[1724471493513,3.2601,153.26,153.23,19.90424254]
[1724471493709,3.2601,153.26,153.25,19.86]
[1724471497411,3.30434025,153.27,153.25,19.86]
[1724471498110,0.04444025,153.27,153.25,19.86]
[1724471498712,44.83452239,153.33,153.25,19.86]
[1724471498908,48.10650604,153.33,153.28,19.86]
[1724471499112,3.2593,153.3,153.28,19.86]
[1724471500716,3.2594,153.29,153.28,19.86]
[1724471502218,3.2593,153.3,153.28,19.86]
[1724471504516,3.30370835,153.31,153.28,19.86]
[1724471504713,3.30370835,153.31,153.3,19.86]
[1724471506015,0.04460835,153.31,153.3,19.86]
[1724471506817,3.30360835,153.31,153.3,19.86]
[1724471507025,0.04460835,153.31,153.27,0.04294554]
[1724471507316,3.2596,153.28,153.27,0.04294554]
[1724471507523,1.2972,153.3,153.21,45.94]
[1724471507720,2.5882,153.3,153.21,45.94]
[1724471507917,3.2606,153.24,153.21,45.94]
[1724471508121,1.3788,153.29,153.21,45.94]
[1724471508515,0.04396882,153.27,153.23,0.04470208]
[1724471509119,3.2606,153.24,153.23,0.04470208]
[1724471510624,3.2613,153.2,153.19,19.86]
[1724471510826,23.05640315,153.26,153.17,82.44771319]
[1724471511014,19.86,153.26,153.17,82.44771319]
[1724471511218,3.2616,153.19,153.17,82.44771319]
[1724471512923,3.30927988,153.2,153.17,82.44771319]
[1724471513119,0.04787988,153.2,153.19,19.86]
[1724471526939,3.261,153.22,153.19,19.86]
[1724471527141,3.261,153.22,153.21,19.86]
[1724471530843,3.2611,153.21,153.2,0.04175257]
[1724471539539,0.04188057,153.23,153.13,19.86]
[1724471539540,39.44188057,153.23,153.13,19.86]
[1724471539745,2.6176,153.2,153.13,19.86]
[1724471540546,3.2623,153.16,153.15,0.04129329]
[1724471625932,3.34132584,153.17,153.15,0.04129329]
[1724471627229,3.2622,153.16,153.15,0.04129329]
[1724471632331,3.34132584,153.17,153.15,0.04129329]
[1724471633536,3.2622,153.16,153.15,0.04129329]
[1724471636534,3.2621,153.17,153.15,0.04129329]
[1724471639034,3.2622,153.16,153.15,0.04129329]
[1724471647545,0.04825275,153.18,153.15,19.90129329]
[1724471648539,3.262,153.17,153.15,19.90129329]
[1724471648742,0.04825275,153.18,153.15,19.90129329]
[1724471649640,3.262,153.17,153.15,19.90129329]
[1724471652136,3.2622,153.16,153.15,19.90129329]
[1724471654340,3.2622,153.16,153.15,0.04129329]
[1724471662149,23.09562038,153.17,153.05,1.3543]
[1724471662359,1.2889,153.16,153.07,19.86]
[1724471662660,3.2634,153.11,153.07,19.86]
[1724471663246,3.31353965,153.11,153.07,19.90629669]
[1724471663555,3.2636,153.1,153.07,19.90629669]
[1724471667351,3.2637,153.09,153.07,19.90629669]
[1724471677664,3.2636,153.1,153.07,19.90629669]
[1724471677869,3.2636,153.1,153.09,19.86]
[1724471680266,3.31353965,153.11,153.09,19.86]
[1724471681672,3.31353965,153.11,153.1,20.06]
[1724471685774,0.05013965,153.11,153.1,20.06]
[1724471696080,0.05013965,153.11,153.07,0.04629669]
[1724471696282,3.31353965,153.11,153.08,20.06]
[1724471700279,3.31353965,153.11,153.1,20.06]
[1724471700280,0.05013965,153.11,153.1,20.06]
[1724471700588,1.2592,153.2,153.1,20.06]
[1724471700783,1.2592,153.2,153.12,20.06]
[1724471700989,3.2624,153.16,153.14,20.06]
[1724471701281,1.2592,153.2,153.14,20.06]
[1724471701482,3.2622,153.16,153.15,0.04325798]
[1724471715894,3.2635,153.11,153.05,4.56827479]
[1724471716095,3.2635,153.11,153.09,20.06]
[1724471722999,3.2635,153.1,153.09,20.06]
[1724471723196,0.04551555,153.12,153.08,0.0494959]
[1724471723800,3.2637,153.09,153.08,0.0494959]
[1724471725099,3.2636,153.1,153.08,0.0494959]
[1724471726108,0.04551555,153.12,153.08,20.1094959]
[1724471727309,3.2636,153.1,153.08,20.1094959]
[1724471729013,3.2637,153.09,153.08,20.1094959]
[1724471734910,3.2637,153.09,153.08,0.0494959]
[1724471781343,0.04551555,153.12,153.08,0.0494959]
[1724471783442,3.2637,153.09,153.08,0.0494959]
[1724471796654,20.06,153.09,152.98,2.581]
[1724471796844,23.37695484,153.09,152.99,20.06]
[1724471797654,0.04499445,153.06,153.02,0.04715273]
[1724471799055,3.2646,153.05,153.02,0.04715273]
[1724471799951,3.30939445,153.06,153.03,20.06]
[1724471800156,0.04499445,153.06,153.03,20.06]
[1724471803060,3.30929445,153.06,153.03,20.06]
[1724471807450,0.04499445,153.06,153.03,20.06]
[1724471807654,0.04499445,153.06,153.05,20.06]
[1724471812256,3.30929445,153.06,153.05,20.06]
[1724471813061,0.04499445,153.06,153.05,20.06]
[1724471817563,3.264,153.08,153.05,20.06]
[1724471817766,3.264,153.08,153.07,20.06]
[1724471820162,0.04353765,153.09,153.07,20.06]
[1724471820163,3.30733765,153.09,153.07,20.06]
[1724471841967,3.30733765,153.09,153.06,0.04741499]
[1724471842669,3.2641,153.08,153.06,0.04741499]
[1724471844175,3.2641,153.07,153.06,0.04741499]
[1724471847575,3.264,153.08,153.06,20.10741499]
[1724471847778,0.04353765,153.09,153.06,20.10741499]
[1724471848379,3.2641,153.08,153.06,20.10741499]
[1724471849781,3.2641,153.07,153.06,20.10741499]
[1724471855796,3.2641,153.07,153.06,0.04741499]
[1724471864606,3.2639,153.08,153.06,0.04741499]
[1724471864907,3.28073673,153.09,153.06,0.04741499]
[1724471866002,3.2639,153.08,153.06,0.04741499]
[1724471866800,3.2641,153.07,153.06,0.04741499]
[1724471873816,3.30743765,153.09,153.06,0.04741499]
[1724471874123,0.04353765,153.09,153.06,0.04741499]
[1724471875421,0.04353765,153.09,153.06,20.10741499]
[1724471881824,3.30723765,153.09,153.06,20.10741499]
[1724471886521,0.04353765,153.09,153.06,0.04741499]
[1724471887324,3.2639,153.08,153.06,0.04741499]
[1724471888421,3.2641,153.07,153.06,0.04741499]
[1724471894725,20.06,153.07,152.98,22.6705]
[1724471895325,3.2651,153.03,152.98,22.6705]
[1724471895719,0.04453075,153.02,152.99,0.04234]
[1724471895919,3.30973075,153.02,152.99,0.04234]
[1724471898830,3.2654,153.01,152.99,0.04234]
[1724471899025,3.2654,153.01,153.0,20.06]
[1724471899219,0.04453075,153.02,153.0,20.06]
[1724471907733,3.27375916,153.09,153.0,23.3256]
[1724471907929,3.27375916,153.09,153.02,20.06]
[1724471908335,3.2645,153.06,153.02,20.06]
[1724471908834,3.3102744,153.06,153.02,20.10998071]
[1724471921354,3.3102744,153.06,153.05,20.06]
[1724471921650,0.0457744,153.06,153.05,20.06]
[1724471923354,20.06,153.18,153.05,20.06]
[1724471923553,22.6342,153.18,153.09,20.06]
[1724471923748,1.3015,153.17,153.09,20.06]
[1724471923953,4.56100973,153.17,153.09,20.06]
[1724471924349,0.04593429,153.15,153.11,0.04526013]
[1724471925464,3.2633,153.12,153.11,0.04526013]
[1724471933378,0.04593429,153.15,153.11,0.04526013]
[1724471933379,0.04593429,153.15,153.11,20.10526013]
[1724471933554,0.04593429,153.15,153.13,20.06]
[1724471934463,3.30843429,153.15,153.13,20.06]
[1724471936463,0.04593429,153.15,153.13,20.06]
[1724471940770,3.30843429,153.15,153.13,20.06]
[1724471942565,3.2629,153.13,153.11,0.04526013]
[1724471942869,0.04593429,153.15,153.11,0.04526013]
[1724471944376,3.2627,153.14,153.11,0.04526013]
[1724471945374,3.263,153.13,153.11,0.04526013]
[1724471946875,3.2627,153.14,153.11,0.04526013]
[1724471948074,3.2627,153.14,153.12,20.06]
[1724471948275,3.30843429,153.15,153.12,20.06]
[1724471948664,0.04593429,153.15,153.14,20.06]
[1724471951871,3.9571,153.22,153.14,20.06]
[1724471952076,3.9571,153.22,153.17,20.06]
[1724471952682,3.2615,153.2,153.17,20.06]
[1724471952979,3.30442299,153.2,153.17,20.10911392]
[1724471953278,0.04292299,153.2,153.17,20.10911392]
[1724471957573,0.04292299,153.2,153.18,20.06]
[1724471959386,3.9714,153.26,153.18,20.06]
[1724471959679,3.9714,153.26,153.22,20.06]
[1724471960177,3.2603,153.25,153.22,20.06]
[1724471960381,3.30360334,153.25,153.22,20.10992647]
[1724471960677,3.2605,153.24,153.22,20.10992647]
[1724471961883,3.30370334,153.25,153.22,20.10992647]
[1724471963283,0.04330334,153.25,153.22,20.10992647]
[1724471964472,0.04330334,153.25,153.23,20.06]
[1724471981295,3.30370334,153.25,153.23,20.06]
[1724472001421,3.2605,153.24,153.23,20.06]
[1724472001921,3.30370334,153.25,153.23,20.06]
[1724472002724,3.2605,153.24,153.23,20.06]
[1724472003221,3.30370334,153.25,153.23,20.06]
[1724472005415,7.29702137,153.3,153.23,20.06]
[1724472005618,7.29702137,153.3,153.26,20.06]
[1724472006021,3.2599,153.27,153.26,20.06]
[1724472009727,3.2601,153.26,153.25,0.04584269]
[1724472010930,19.59,153.41,153.25,0.04584269]
[1724472011223,2.6117,153.38,153.32,20.06]
[1724472011425,2.6117,153.38,153.34,20.06]
[1724472011835,3.2582,153.35,153.34,20.06]
[1724472014234,0.04494254,153.36,153.34,20.06]
[1724472014538,0.04494254,153.36,153.35,20.06]
[1724472015126,3.21847029,153.43,153.35,20.06]
[1724472015328,1.3795,153.44,153.4,20.06]
[1724472015524,4.59766028,153.44,153.4,20.06]
[1724472015762,1.3795,153.44,153.4,20.06]
[1724472015921,3.2566,153.43,153.4,20.06]
[1724472016126,3.30092673,153.43,153.4,20.10888443]
[1724472017333,3.2567,153.42,153.4,20.10888443]
[1724472017733,0.04432673,153.43,153.4,20.10888443]
[1724472018038,3.30082673,153.43,153.4,20.10888443]
[1724472033545,3.2567,153.42,153.4,20.10888443]
[1724472033747,0.04432673,153.43,153.4,0.04888443]
[1724472034452,3.2567,153.42,153.4,0.04888443]
[1724472035251,3.2569,153.41,153.4,0.04888443]
[1724472036254,3.2567,153.42,153.4,20.10888443]
[1724472038451,3.30082673,153.43,153.4,20.10888443]
[1724472042655,0.04432673,153.43,153.4,20.10888443]
[1724472043856,3.2558,153.46,153.42,20.06]
[1724472044056,3.2558,153.46,153.44,20.06]
[1724472052472,0.04379036,153.47,153.44,20.06]
[1724472053468,3.29939036,153.47,153.44,20.06]
[1724472054265,0.04379036,153.47,153.43,20.10661619]
[1724472055369,3.2559,153.46,153.43,20.10661619]
[1724472055969,0.04379036,153.47,153.43,20.10661619]
[1724472057266,3.256,153.46,153.43,20.10661619]
[1724472059569,0.04379036,153.47,153.43,20.10661619]
[1724472060667,3.256,153.46,153.43,20.10661619]
[1724472062772,0.04379036,153.47,153.43,20.10661619]
[1724472062773,3.29949036,153.47,153.43,20.10661619]
[1724472062963,3.29949036,153.47,153.45,20.06]
[1724472066178,0.04379036,153.47,153.45,20.06]
[1724472075380,3.29939036,153.47,153.45,20.06]
[1724472085185,0.04379036,153.47,153.45,20.06]
[1724472089190,3.29949036,153.47,153.45,20.06]
[1724472089787,0.04379036,153.47,153.45,20.06]
[1724472090084,2.6349,153.53,153.45,20.06]
[1724472090290,2.6349,153.53,153.48,20.06]
[1724472091094,0.02433803,153.52,153.49,0.04930791]
[1724472092994,3.2548,153.51,153.49,0.04930791]
[1724472095503,3.255,153.5,153.49,0.04930791]
[1724472100002,0.02433803,153.52,153.49,0.04930791]
[1724472101398,3.255,153.5,153.49,0.04930791]
[1724472105104,3.27913803,153.52,153.49,0.04930791]
[1724472105305,0.02433803,153.52,153.49,0.04930791]
[1724472105913,3.27893803,153.52,153.49,0.04930791]
[1724472107112,0.02433803,153.52,153.49,0.04930791]
[1724472110106,3.27893803,153.52,153.49,0.04930791]
[1724472110322,0.02433803,153.52,153.49,0.04930791]
[1724472111015,0.02433803,153.52,153.49,20.10930791]
[1724472117220,0.02433803,153.52,153.49,0.04930791]
[1724472117825,3.2549,153.51,153.49,0.04930791]
[1724472118023,0.02433803,153.52,153.49,0.04930791]
[1724472118527,3.2548,153.51,153.49,0.04930791]
[1724472119825,3.255,153.5,153.49,0.04930791]
[1724472122519,0.02433803,153.52,153.49,0.04930791]
[1724472123115,3.27913803,153.52,153.49,0.04930791]
[1724472123323,0.02433803,153.52,153.49,0.04930791]
[1724472124323,3.2548,153.51,153.49,0.04930791]
[1724472131431,3.27893803,153.52,153.49,20.10930791]
[1724472131628,0.02433803,153.52,153.49,20.10930791]
[1724472145645,3.27893803,153.52,153.49,20.10930791]
[1724472145845,0.02433803,153.52,153.49,20.10930791]
[1724472146037,3.2548,153.51,153.49,20.10930791]
[1724472148041,3.255,153.5,153.49,20.10930791]
[1724472148240,3.255,153.5,153.49,0.04930791]
[1724472150452,3.2548,153.51,153.49,0.04930791]
[1724472150749,0.02433803,153.52,153.49,0.04930791]
[1724472151155,3.255,153.5,153.49,0.04930791]
[1724472151342,1.3713,153.51,153.43,20.06]
[1724472151650,2.6803,153.51,153.43,20.06]
[1724472151954,3.2556,153.47,153.43,20.06]
[1724472152458,3.303679,153.47,153.43,20.1071426]
[1724472155850,3.2558,153.46,153.43,20.1071426]
[1724472159458,3.2561,153.45,153.43,20.1071426]
[1724472159862,0.048079,153.47,153.43,0.0471426]
[1724472160156,3.2562,153.44,153.43,0.0471426]
[1724472161981,20.06,153.44,153.3,103.56040293]
[1724472162257,20.06,153.4,153.3,20.06]
[1724472162657,2.7508,153.39,153.3,20.06]
[1724472162861,0.04242113,153.36,153.33,0.04992542]
[1724472163762,3.2584,153.35,153.33,0.04992542]
[1724472163968,0.04242113,153.36,153.33,0.04992542]
[1724472164268,3.2582,153.35,153.33,0.04992542]
[1724472164567,0.04242113,153.36,153.33,0.04992542]
[1724472164763,3.2584,153.34,153.33,0.04992542]
[1724472166967,3.2582,153.35,153.33,0.04992542]
[1724472169069,3.30042113,153.36,153.33,0.04992542]
[1724472169665,0.04242113,153.36,153.33,0.04992542]
[1724472169870,3.2582,153.35,153.33,0.04992542]
[1724472178877,0.04242113,153.36,153.33,0.04992542]
[1724472180275,3.2584,153.34,153.33,0.04992542]
[1724472180476,20.10242113,153.36,153.28,67.61928578]
[1724472180477,20.06,153.36,153.28,67.61928578]
[1724472180677,20.06,153.34,153.28,67.61928578]
[1724472180875,3.2593,153.3,153.28,67.61928578]
[1724472185575,3.2594,153.29,153.28,67.61928578]
[1724472185785,0.04765601,153.31,153.27,0.04387205]
[1724472186180,3.2596,153.28,153.27,0.04387205]
[1724472193192,3.27514106,153.3,153.27,0.04387205]
[1724472193787,3.2596,153.28,153.27,0.04387205]
[1724472196987,3.2595,153.29,153.27,0.04387205]
[1724472203394,3.2596,153.28,153.27,0.04387205]
[1724472210208,0.04765601,153.31,153.27,0.04387205]
[1724472210507,3.2593,153.3,153.27,0.04387205]
[1724472212803,3.2594,153.29,153.27,0.04387205]
[1724472221417,3.2596,153.28,153.27,0.04387205]
[1724472235329,0.04765601,153.31,153.27,0.04387205]
[1724472236830,3.2596,153.29,153.27,0.04387205]
[1724472240632,3.2596,153.28,153.27,0.04387205]
[1724472301068,3.2595,153.29,153.27,0.04387205]
[1724472301276,0.04765601,153.31,153.27,0.04387205]
[1724472301878,3.2596,153.28,153.27,0.04387205]
[1724472302281,0.04765601,153.31,153.27,0.04387205]
[1724472303680,0.04765601,153.31,153.28,20.06]
[1724472306076,0.04765601,153.31,153.3,20.06]
[1724472306277,21.3893,153.4,153.3,20.06]
[1724472306580,20.06,153.39,153.3,20.06]
[1724472307084,20.06,153.37,153.28,21.3489]
[1724472307283,0.04556337,153.34,153.31,0.04162657]
[1724472308280,3.2586,153.33,153.31,0.04162657]
[1724472308775,0.04556337,153.34,153.31,0.04162657]
[1724472309279,0.04556337,153.34,153.32,3.2223984]
[1724472309481,0.04556337,153.34,153.31,0.04162657]
[1724472309675,0.04556337,153.34,153.32,3.22231882]
[1724472309877,0.04556337,153.34,153.31,0.04162657]
[1724472310081,0.04556337,153.34,153.32,3.22231883]
[1724472310279,0.04556337,153.34,153.31,0.04162657]
[1724472310481,0.04556337,153.34,153.32,3.22231884]
[1724472310685,0.04556337,153.34,153.31,0.04162657]
[1724472310888,0.04556337,153.34,153.32,23.28231884]
[1724472311185,0.04556337,153.34,153.32,20.06]
[1724472315585,0.04556337,153.34,153.33,20.06]
[1724472316886,3.2575,153.38,153.33,20.06]
[1724472317091,3.2575,153.38,153.36,20.06]
[1724472325200,0.04983855,153.39,153.35,0.04525387]
[1724472325201,0.04983855,153.39,153.37,20.06]
[1724472326988,3.30733855,153.39,153.35,20.10525387]
[1724472328992,3.2575,153.38,153.35,20.10525387]
[1724472329992,3.2579,153.36,153.35,20.10525387]
[1724472330189,0.04983855,153.39,153.35,20.10525387]
[1724472330389,0.04983855,153.39,153.35,0.04525387]
[1724472331901,3.2579,153.36,153.35,0.04525387]
[1724472332896,0.04983855,153.39,153.35,0.04525387]
[1724472333994,3.2579,153.36,153.35,0.04525387]
[1724472335996,3.2579,153.37,153.35,0.04525387]
[1724472338395,0.04983855,153.39,153.35,0.04525387]
[1724472338396,3.2579,153.36,153.35,0.04525387]
[1724472342997,0.04983855,153.39,153.35,20.10525387]
[1724472343502,3.2577,153.38,153.35,20.10525387]
[1724472344291,3.2577,153.37,153.35,20.10525387]
[1724472350606,3.2579,153.36,153.35,20.10525387]
[1724472361020,3.2579,153.36,153.35,0.04525387]
[1724472377139,3.2577,153.37,153.35,0.04525387]
[1724472378023,1.3077,153.38,153.35,0.04525387]
[1724472379022,3.2579,153.37,153.35,0.04525387]
[1724472379523,3.2576,153.38,153.36,20.06]
[1724472382121,0.04983855,153.39,153.37,20.06]
[1724472383425,3.2575,153.38,153.37,20.06]
[1724472385019,3.2575,153.38,153.35,20.10525387]
[1724472385224,3.2575,153.38,153.36,3.21864614]
[1724472385518,3.2575,153.38,153.35,20.10525387]
[1724472385723,3.2575,153.38,153.36,3.21822987]
[1724472386032,3.2575,153.38,153.35,20.10525387]
[1724472386323,3.2575,153.38,153.36,3.21948493]
[1724472386519,3.2575,153.38,153.35,20.10525387]
[1724472386724,3.2575,153.38,153.36,3.220576]
[1724472386924,3.2575,153.38,153.35,20.10525387]
[1724472387319,3.2575,153.38,153.36,3.22060553]
[1724472387623,3.2575,153.38,153.35,20.10525387]
[1724472387829,3.2575,153.38,153.36,3.2203908]
[1724472388028,3.2575,153.38,153.37,3.2203908]
[1724472390453,3.2575,153.38,153.35,20.10525387]
[1724472390628,3.2575,153.38,153.36,3.2200976]
[1724472390827,0.04983855,153.39,153.35,20.10525387]
[1724472390828,3.2577,153.37,153.35,20.10525387]
[1724472391027,3.2577,153.37,153.36,3.22013687]
[1724472393840,3.2577,153.37,153.35,20.10525387]
[1724472394137,3.2577,153.37,153.36,3.22022189]
[1724472396633,3.2576,153.38,153.36,3.22022189]
[1724472396835,3.2576,153.38,153.37,3.22022189]
[1724472397040,3.2576,153.38,153.35,20.10525387]
[1724472397338,3.2576,153.38,153.36,3.2184641]
[1724472397548,3.2576,153.38,153.35,20.10525387]
[1724472397737,3.2576,153.38,153.37,3.21834291]
[1724472397931,3.2576,153.38,153.36,3.21834291]
[1724472398131,0.04983855,153.39,153.37,23.27834291]
[1724472398436,0.04983855,153.39,153.38,3.21834291]
[1724472398739,0.04983855,153.39,153.37,20.06]
[1724472399036,0.04983855,153.39,153.38,3.21752326]
[1724472400932,20.06,153.46,153.38,3.21752326]
[1724472400933,3.24658631,153.51,153.38,3.21752326]
[1724472401143,4.0304,153.48,153.39,23.27752326]
[1724472401343,4.0304,153.48,153.39,20.06]
[1724472401644,3.2566,153.43,153.39,20.06]
[1724472401845,3.2566,153.43,153.4,3.21618459]
[1724472402042,3.28425603,153.43,153.39,20.10461599]
[1724472402237,3.28425603,153.43,153.4,3.21611977]
[1724472402432,0.02765603,153.43,153.39,20.10461599]
[1724472402635,0.02765603,153.43,153.4,3.21617665]
[1724472402835,0.02765603,153.43,153.39,20.10461599]
[1724472403045,0.02765603,153.43,153.4,3.21612349]
[1724472403348,3.28415603,153.43,153.39,20.10461599]
[1724472404839,3.2567,153.42,153.39,20.10461599]
[1724472406744,3.28425603,153.43,153.39,20.10461599]
[1724472407047,0.02765603,153.43,153.39,20.10461599]
[1724472408345,3.2567,153.42,153.39,20.10461599]
[1724472414753,3.2569,153.41,153.39,0.04461599]
[1724472415247,3.2571,153.4,153.39,0.04461599]
[1724472417447,3.2582,153.35,153.32,26.06]
[1724472417652,42.79484138,153.42,153.33,3.21961167]
[1724472417846,42.79484138,153.42,153.32,46.12]
[1724472418050,3.2581,153.36,153.33,3.22033472]
[1724472418251,3.2581,153.36,153.32,46.12]
[1724472418450,3.30744486,153.36,153.32,46.16734126]
[1724472418748,3.2582,153.35,153.32,46.16734126]
[1724472421875,3.2584,153.34,153.32,46.16734126]
[1724472422559,3.2582,153.35,153.32,46.16734126]
[1724472423051,3.2582,153.35,153.32,20.10734126]
[1724472423248,3.2584,153.34,153.32,20.10734126]
[1724472423460,0.04934486,153.36,153.32,20.10734126]
[1724472424049,3.2586,153.34,153.32,20.10734126]
[1724472424959,3.2586,153.33,153.32,20.10734126]
[1724472425152,3.2586,153.33,153.32,23.32821533]
[1724472426862,3.2586,153.33,153.32,20.10734126]
[1724472427154,3.2586,153.33,153.32,23.32816282]
[1724472428057,3.2586,153.33,153.32,20.10734126]
[1724472428558,3.2586,153.33,153.32,3.26816397]
[1724472428762,3.2586,153.33,153.32,0.04734126]
[1724472432166,0.04934486,153.36,153.32,20.10734126]
[1724472433369,3.2586,153.33,153.32,20.10734126]
[1724472441072,3.2585,153.34,153.32,20.10734126]
[1724472443181,3.2586,153.33,153.32,20.10734126]
[1724472445974,3.2584,153.34,153.32,20.10734126]
[1724472448578,3.2586,153.33,153.32,20.10734126]
[1724472449075,3.2586,153.33,153.32,0.04734126]
[1724472458305,3.24234859,153.34,153.25,1.3285]
[1724472458306,3.2598,153.28,153.25,21.3885]
[1724472458579,3.2598,153.28,153.25,20.06]
[1724472458808,3.2598,153.28,153.26,3.22140936]
[1724472458974,3.2598,153.28,153.25,20.06]
[1724472459188,3.2598,153.28,153.26,3.22140883]
[1724472459387,3.2598,153.28,153.25,20.10855307]
[1724472459586,3.2598,153.28,153.26,3.2214476]
[1724472459783,3.2599,153.27,153.25,20.10855307]
[1724472460085,0.04134335,153.29,153.25,0.04855307]
[1724472460684,3.2601,153.26,153.25,0.04855307]
[1724472462591,3.2599,153.27,153.25,0.04855307]
[1724472463595,3.2601,153.26,153.25,0.04855307]
[1724472466393,3.2599,153.27,153.25,20.10855307]
[1724472469900,0.04134335,153.29,153.25,20.10855307]
[1724472470201,3.2597,153.28,153.25,20.10855307]
[1724472470598,3.30084335,153.29,153.25,20.10855307]
[1724472470794,0.04134335,153.29,153.27,20.06]
[1724472471194,0.04134335,153.29,153.25,20.10855307]
[1724472472297,3.2598,153.28,153.25,20.10855307]
[1724472480209,0.04134335,153.29,153.25,20.10855307]
[1724472480509,0.04134335,153.29,153.25,0.04855307]
[1724472481105,3.26,153.27,153.25,0.04855307]
[1724472481802,3.2601,153.26,153.25,0.04855307]
[1724472482003,6.58783942,153.26,153.25,0.04855307]
[1724472482202,3.2601,153.26,153.25,0.04855307]
[1724472482807,6.55947245,153.26,153.25,0.04855307]
[1724472483001,3.2601,153.26,153.25,0.04855307]
[1724472483606,6.46915462,153.26,153.25,0.04855307]
[1724472488915,3.2601,153.26,153.25,0.04855307]
[1724472489716,6.57489806,153.26,153.25,0.04855307]
[1724472490913,3.2601,153.26,153.25,0.04855307]
[1724472505720,3.2599,153.27,153.25,0.04855307]
[1724472506826,0.04134335,153.29,153.25,0.04855307]
[1724472508823,3.26,153.27,153.25,0.04855307]
[1724472511334,0.04134335,153.29,153.25,0.04855307]
[1724472512328,3.2599,153.27,153.25,0.04855307]
[1724472512963,0.04134335,153.29,153.25,0.04855307]
[1724472512964,3.2601,153.26,153.25,0.04855307]
[1724472516930,0.04134335,153.29,153.25,0.04855307]
[1724472517529,3.2598,153.28,153.25,0.04855307]
[1724472518434,3.2599,153.27,153.25,0.04855307]
[1724472521331,3.2599,153.27,153.26,3.21816484]
[1724472521627,3.26,153.26,153.25,0.04855307]
[1724472521829,3.26,153.26,153.25,3.26690552]
[1724472522031,6.48850564,153.26,153.25,3.26690552]
[1724472522852,6.48850564,153.26,153.25,0.04855307]
[1724472523043,6.48850564,153.26,153.25,3.26724119]
[1724472523540,6.48850564,153.26,153.25,0.04855307]
[1724472523738,6.48850564,153.26,153.25,3.26724119]
[1724472525034,3.26,153.26,153.25,3.26724119]
[1724472525932,0.04134335,153.29,153.25,3.26724119]
[1724472526139,0.04134335,153.29,153.26,3.21868812]
[1724472526338,0.04134335,153.29,153.27,3.21868812]
[1724472526532,3.2596,153.28,153.25,0.04855307]
[1724472526734,3.2596,153.28,153.26,3.2176542]
[1724472526935,0.04134335,153.29,153.27,3.2176542]
[1724472527242,0.04134335,153.29,153.28,3.2176542]
[1724472528544,3.30084335,153.29,153.28,3.2176542]
[1724472529437,3.30084335,153.29,153.25,0.04855307]
[1724472529641,3.30084335,153.29,153.28,3.2170474]
[1724472529938,3.2597,153.28,153.25,0.04855307]
[1724472530140,3.2597,153.28,153.26,3.21695088]
[1724472530445,3.2597,153.28,153.27,3.21695088]
[1724472533445,3.2597,153.28,153.25,0.04855307]
[1724472533642,3.2597,153.28,153.26,3.2164769]
[1724472533838,3.2597,153.28,153.27,3.2164769]
[1724472536281,3.2597,153.28,153.25,0.04855307]
[1724472536546,3.2597,153.28,153.26,3.21648754]
[1724472536739,3.2597,153.28,153.27,3.21648754]
[1724472537640,0.04134335,153.29,153.27,3.21648754]
[1724472537847,0.04134335,153.29,153.28,3.21648754]
[1724472538745,3.30074335,153.29,153.28,3.21648754]
[1724472539651,3.30074335,153.29,153.28,3.2165495]
[1724472541874,3.30074335,153.29,153.25,0.04855307]
[1724472542143,3.30074335,153.29,153.28,3.2165089]
[1724472545175,3.30074335,153.29,153.25,0.04855307]
[1724472545352,3.30074335,153.29,153.26,3.21731635]
[1724472545552,3.30074335,153.29,153.27,3.21731635]
[1724472545756,3.30074335,153.29,153.28,3.21731635]
[1724472547053,0.04134335,153.29,153.28,3.21731635]
[1724472548054,0.04134335,153.29,153.28,23.27731635]
[1724472548754,0.04134335,153.29,153.28,23.27577628]